bitfinex-derivatives/quotes_BTCF0:USTF0_20250213
["timestamp","ask_amount","ask_price","bid_price","bid_amount"]
[1739456681209,0.00256193,96078.0,96077.0,0.22902889]
[1739456681411,0.00256193,96078.0,96077.0,0.2101358]
[1739456682905,0.00256193,96078.0,96077.0,0.002]
[1739456685209,0.00261341,96078.0,96077.0,0.002]
[1739456687415,0.00261341,96078.0,96077.0,0.2101358]
[1739456687620,0.00261341,96078.0,96077.0,0.002]
[1739456690918,0.00261341,96078.0,96077.0,0.2101358]
[1739456692118,0.00261341,96078.0,96077.0,0.002]
[1739456692913,0.00261341,96078.0,96077.0,0.001]
[1739456693311,0.00261341,96078.0,96077.0,0.2091358]
[1739456693717,0.00261341,96078.0,96077.0,0.2081358]
[1739456695712,0.00261341,96078.0,96076.0,0.3608]
[1739456696009,0.21074791,96078.0,96076.0,0.3608]
[1739456696214,0.00261341,96078.0,96076.0,0.3608]
[1739456698718,0.00161341,96078.0,96076.0,0.3608]
[1739456698923,0.00261341,96078.0,96076.0,0.3608]
[1739456699222,0.00261341,96078.0,96068.0,0.3608]
[1739456699423,0.2081531,96069.0,96068.0,0.3608]
[1739456700021,0.2081531,96069.0,96068.0,0.36060425]
[1739456700418,0.2081531,96069.0,96068.0,0.36160425]
[1739456701420,0.0614,96077.0,96068.0,0.36160425]
[1739456701619,0.0614,96077.0,96076.0,0.3608]
[1739456701921,0.08268,96077.0,96076.0,0.568938]
[1739456702124,0.00866276,96084.0,96076.0,0.568938]
[1739456702326,0.0635,96089.0,96077.0,0.3608]
[1739456702515,0.0635,96089.0,96088.0,0.3608]
[1739456703116,0.2081048,96092.0,96088.0,0.3608]
[1739456703313,0.0613,96095.0,96088.0,0.3608]
[1739456703314,0.1216,96095.0,96088.0,0.3608]
[1739456703620,0.001,96089.0,96088.0,0.3608]
[1739456704022,0.001,96089.0,96088.0,0.3618]
[1739456704221,0.08364,96089.0,96088.0,0.3618]
[1739456704521,0.001,96089.0,96088.0,0.3618]
[1739456704722,0.08364,96089.0,96088.0,0.3618]
[1739456704924,0.1017012,96089.0,96088.0,0.3618]
[1739456705227,0.0613,96095.0,96088.0,0.3628]
[1739456706117,0.0613,96095.0,96088.0,0.3618]
[1739456706315,0.08348877,96096.0,96088.0,0.3608]
[1739456706519,0.10021077,96096.0,96088.0,0.3618]
[1739456706922,0.10021077,96096.0,96088.0,0.3628]
[1739456708028,0.016722,96096.0,96088.0,0.3618]
[1739456708226,0.12526605,96098.0,96088.0,0.3628]
[1739456708821,0.12526605,96098.0,96097.0,0.3608]
[1739456708822,0.14237591,96098.0,96097.0,0.3608]
[1739456709022,0.01710986,96098.0,96097.0,0.3608]
[1739456709223,0.0603,96102.0,96097.0,0.3608]
[1739456709425,0.08264,96099.0,96097.0,0.3608]
[1739456710219,0.08264,96099.0,96097.0,0.3618]
[1739456710621,0.0603,96102.0,96097.0,0.3618]
[1739456710935,0.2080903,96098.0,96097.0,0.3618]
[1739456711130,0.2080903,96098.0,96097.0,0.3628]
[1739456711330,0.2080903,96098.0,96097.0,0.3638]
[1739456711727,0.2080903,96098.0,96097.0,0.003]
[1739456712032,0.2081073,96091.0,96070.0,0.3608]
[1739456712232,0.12526605,96083.0,96076.0,0.2081375]
[1739456713233,0.01705736,96083.0,96071.0,0.208148]
[1739456713422,0.5689298,96080.0,96070.0,0.3608]
[1739456713629,0.2081298,96080.0,96070.0,0.3608]
[1739456715136,0.2091298,96080.0,96070.0,0.3608]
[1739456716336,0.2081416,96075.0,96070.0,0.3608]
[1739456716537,0.2091295,96080.0,96073.0,0.00115618]
[1739456716737,0.2081341,96078.0,96073.0,0.00115618]
[1739456717238,0.001,96080.0,96073.0,0.00115618]
[1739456718234,0.001,96078.0,96073.0,0.00115618]
[1739456718938,0.1417079,96083.0,96073.0,0.00015618]
[1739456719132,0.001,96080.0,96073.0,0.00015618]
[1739456719742,0.2081324,96079.0,96073.0,0.00015618]
[1739456720142,0.001,96080.0,96073.0,0.00015618]
[1739456720436,0.001,96080.0,96054.0,0.3608]
[1739456720437,0.2081531,96069.0,96054.0,0.3608]
[1739456720635,0.12526605,96064.0,96054.0,0.3608]
[1739456720831,0.12526605,96070.0,96055.0,0.2081817]
[1739456721136,0.12526605,96070.0,96056.0,0.2081808]
[1739456721541,0.12526605,96070.0,96054.0,0.3608]
[1739456721744,0.00015563,96073.0,96069.0,0.3608]
[1739456721944,0.00015563,96073.0,96070.0,0.1912]
[1739456722345,0.2081476,96072.0,96070.0,0.1912]
[1739456722541,0.2081488,96071.0,96070.0,0.1912]
[1739456723737,0.00015563,96073.0,96054.0,0.3608]
[1739456723933,0.2081766,96059.0,96054.0,0.3608]
[1739456724142,0.12526605,96064.0,96054.0,0.3608]
[1739456724746,0.2081755,96059.0,96054.0,0.3608]
[1739456725251,0.2081775,96058.0,96054.0,0.3608]
[1739456725444,0.208169,96062.0,96054.0,0.3608]
[1739456725838,0.2081705,96061.0,96054.0,0.3608]
[1739456726542,0.12626605,96064.0,96054.0,0.3608]
[1739456727043,0.2081737,96060.0,96054.0,0.3608]
[1739456727238,0.12626605,96064.0,96054.0,0.3608]
[1739456727239,0.12526605,96064.0,96054.0,0.3608]
[1739456727439,0.001,96058.0,96054.0,0.3608]
[1739456727644,0.08256,96057.0,96054.0,0.3608]
[1739456728952,0.08356,96057.0,96054.0,0.3608]
[1739456729453,0.10008367,96057.0,96054.0,0.3608]
[1739456729641,0.01752367,96057.0,96054.0,0.3608]
[1739456733344,0.2081834,96055.0,96054.0,0.3608]
[1739456733854,0.01752367,96057.0,96054.0,0.3608]
[1739456734442,0.01752367,96057.0,96053.0,0.3609561]
[1739456736342,0.01752367,96057.0,96055.0,0.2081825]
[1739456736749,0.01752367,96057.0,96053.0,0.3609561]
[1739456737652,0.01652367,96057.0,96053.0,0.3609561]
[1739456737841,0.001,96057.0,96053.0,0.3609561]
[1739456738458,0.12526605,96064.0,96053.0,0.3609561]
[1739456738656,0.001,96057.0,96053.0,0.3609561]
[1739456738857,0.2081846,96055.0,96053.0,0.0001561]
[1739456739351,0.01815309,96057.0,96053.0,0.0001561]
[1739456739955,0.22633369,96057.0,96053.0,0.0001561]
[1739456740361,0.2081833,96056.0,96053.0,0.0001561]
[1739456741441,0.2081836,96055.0,96053.0,0.0001561]
[1739456743453,0.2091836,96055.0,96053.0,0.0001561]
[1739456743757,0.001,96055.0,96053.0,0.0001561]
[1739456745351,0.01716803,96057.0,96053.0,0.0001561]
[1739456745553,0.12526605,96070.0,96055.0,0.3608]
[1739456745753,0.12526605,96070.0,96064.0,0.3608]
[1739456746849,0.12526605,96070.0,96065.0,0.2081607]
[1739456747461,0.12626605,96070.0,96064.0,0.3608]
[1739456747946,0.14326199,96070.0,96064.0,0.3608]
[1739456748853,0.14326199,96070.0,96067.0,0.2081574]
[1739456749046,0.01799594,96070.0,96067.0,0.2081574]
[1739456749459,0.01799594,96070.0,96069.0,0.2081531]
[1739456749956,0.77012,96085.0,96072.0,0.2081466]
[1739456750161,0.01660616,96073.0,96072.0,0.2081466]
[1739456750354,0.00015563,96073.0,96072.0,0.2081466]
[1739456750551,0.77012,96085.0,96078.0,0.2081336]
[1739456750864,0.77072001,96085.0,96078.0,0.5689336]
[1739456751059,0.00060001,96085.0,96078.0,0.5689336]
[1739456751361,0.12526605,96090.0,96078.0,0.5689336]
[1739456751756,0.01875425,96079.0,96078.0,0.5689336]
[1739456753263,0.0171926,96079.0,96078.0,0.5689336]
[1739456753463,0.12526605,96090.0,96079.0,0.2081301]
[1739456753767,0.12526605,96090.0,96088.0,0.3608]
[1739456753959,0.48606605,96098.0,96088.0,0.3608]
[1739456755165,0.48606605,96098.0,96088.0,0.3618]
[1739456755665,0.2080938,96097.0,96088.0,0.3618]
[1739456756257,0.2080977,96095.0,96088.0,0.3618]
[1739456756667,0.50325873,96098.0,96088.0,0.3618]
[1739456756863,0.50269872,96098.0,96088.0,0.3628]
[1739456757670,0.2081016,96093.0,96088.0,0.3628]
[1739456758559,0.2081016,96093.0,96088.0,0.002]
[1739456760669,0.5689082,96090.0,96088.0,0.002]
[1739456761366,0.2081082,96090.0,96088.0,0.002]
[1739456761568,0.5689082,96090.0,96088.0,0.002]
[1739456761870,0.3608,96090.0,96066.0,0.3608]
[1739456762069,0.2081439,96074.0,96059.0,0.00156128]
[1739456762464,0.2081449,96073.0,96059.0,0.00156128]
[1739456763174,0.2081449,96073.0,96060.0,0.0001561]
[1739456763563,0.12526605,96077.0,96060.0,0.0001561]
[1739456763867,0.33340195,96077.0,96060.0,0.0001561]
[1739456764569,0.33340195,96077.0,96060.0,0.208328]
[1739456764771,0.33340195,96077.0,96060.0,0.0001561]
[1739456764772,0.12526605,96077.0,96060.0,0.0001561]
[1739456764961,0.12526605,96077.0,96067.0,0.2201]
[1739456765270,0.2081553,96068.0,96067.0,0.2201]
[1739456765463,0.2081553,96068.0,96067.0,0.2191]
[1739456766368,0.3608,96071.0,96060.0,0.0001561]
[1739456766569,0.2081662,96063.0,96060.0,0.0001561]
[1739456767670,0.22525272,96063.0,96060.0,0.0001561]
[1739456768172,0.01708652,96063.0,96060.0,0.0001561]
[1739456768363,0.2081595,96067.0,96060.0,0.0001561]
[1739456768563,0.2081641,96064.0,96060.0,0.0001561]
[1739456768763,0.22926129,96064.0,96060.0,0.0001561]
[1739456768964,0.02109719,96064.0,96060.0,0.0001561]
[1739456769165,0.2081704,96061.0,96060.0,0.0001561]
[1739456769466,0.12526605,96070.0,96060.0,0.0001561]
[1739456769673,0.2081621,96065.0,96060.0,0.0001561]
[1739456769872,0.2081646,96064.0,96060.0,0.0001561]
[1739456770571,0.3608,96062.0,96060.0,0.0001561]
[1739456772968,0.208188,96053.0,96050.0,0.50084]
[1739456773174,0.2505321,96060.0,96050.0,0.5]
[1739456773370,0.12526605,96060.0,96050.0,0.5]
[1739456773679,0.2081792,96057.0,96050.0,0.5]
[1739456774673,0.2081792,96057.0,96050.0,0.501]
[1739456775178,0.2081792,96057.0,96050.0,0.5]
[1739456775380,0.12526605,96060.0,96050.0,0.501]
[1739456775767,0.33343875,96060.0,96050.0,0.501]
[1739456775964,0.12526605,96060.0,96050.0,0.501]
[1739456776169,0.3608,96062.0,96050.0,0.501]
[1739456776369,0.0824,96061.0,96056.0,0.2081804]
[1739456776571,0.3608,96062.0,96057.0,0.1921]
[1739456777578,0.2081724,96061.0,96057.0,0.1921]
[1739456778978,0.3608,96062.0,96057.0,0.1921]
[1739456782582,0.3608,96062.0,96050.0,0.5008]
[1739456782780,0.12526605,96060.0,96050.0,0.5]
[1739456782976,0.2081792,96057.0,96050.0,0.5]
[1739456783281,0.2081758,96059.0,96050.0,0.5]
[1739456784173,0.12526605,96060.0,96050.0,0.5]
[1739456784678,0.12526605,96060.0,96050.0,0.7081941]
[1739456785273,0.12526605,96060.0,96050.0,0.7091941]
[1739456785674,0.12526605,96060.0,96055.0,0.2081819]
[1739456786278,0.02130473,96065.0,96050.0,0.5018]
[1739456786478,0.12526605,96060.0,96053.0,0.2081867]
[1739456789386,0.12526605,96060.0,96050.0,0.5008]
[1739456789581,0.0216052,96065.0,96057.0,0.3608]
[1739456789770,0.12526605,96070.0,96057.0,0.3608]
[1739456790084,0.3608,96072.0,96069.0,0.2081527]
[1739456790284,0.3608,96072.0,96070.0,0.1821]
[1739456791681,0.02151661,96072.0,96070.0,0.1831]
[1739456791882,0.12542215,96080.0,96070.0,0.1831]
[1739456792280,0.14627766,96080.0,96070.0,0.1831]
[1739456793985,0.14627766,96080.0,96070.0,0.1841]
[1739456794684,0.3608,96073.0,96070.0,0.1841]
[1739456795086,0.2081466,96072.0,96070.0,0.1841]
[1739456795787,0.2081488,96071.0,96070.0,0.002]
[1739456796882,0.2081488,96071.0,96070.0,0.001]
[1739456797381,0.2081596,96066.0,96065.0,0.0001561]
[1739456798382,0.3608,96073.0,96065.0,0.0001561]
[1739456801592,0.14627766,96080.0,96065.0,0.0001561]
[1739456801593,0.14627766,96080.0,96068.0,0.3608]
[1739456801789,0.14627766,96080.0,96073.0,0.208143]
[1739456801997,0.14627766,96080.0,96069.0,0.1806]
[1739456802495,0.02101161,96080.0,96079.0,0.2081314]
[1739456803996,0.02101161,96080.0,96079.0,0.2091314]
[1739456804296,0.02101161,96080.0,96079.0,0.2101314]
[1739456810611,0.02101161,96080.0,96079.0,0.2091314]
[1739456810812,0.02101161,96080.0,96079.0,0.2111314]
[1739456811205,0.02101161,96080.0,96079.0,0.2121314]
[1739456811404,0.02101161,96080.0,96079.0,0.002]
[1739456811603,0.02101161,96080.0,96079.0,0.003]
[1739456815321,0.22914091,96080.0,96079.0,0.003]
[1739456815615,0.02101161,96080.0,96079.0,0.003]
[1739456816411,0.02101161,96080.0,96079.0,0.2111314]
[1739456817411,0.02101161,96080.0,96079.0,0.003]
[1739456817813,0.02101161,96080.0,96079.0,0.2111314]
[1739456820622,0.02101161,96080.0,96079.0,0.003]
[1739456821618,0.02101161,96080.0,96079.0,0.009]
[1739456822720,0.02101161,96080.0,96079.0,0.007]
[1739456823127,0.02101161,96080.0,96076.0,0.3608]
[1739456823326,0.02101161,96080.0,96079.0,0.002]
[1739456824431,0.02101161,96080.0,96076.0,0.3608]
[1739456829424,0.02101161,96080.0,96076.0,0.3638]
[1739456830229,0.02101161,96080.0,96076.0,0.3608]
[1739456833622,0.02101161,96080.0,96079.0,0.2081314]
[1739456833826,0.02101161,96080.0,96076.0,0.3608]
[1739456834327,0.02101161,96080.0,96076.0,0.3618]
[1739456834522,0.02101161,96080.0,96079.0,0.2081314]
[1739456834936,0.02101161,96080.0,96076.0,0.3618]
[1739456835726,0.02101161,96080.0,96076.0,0.3608]
[1739456836334,0.02101161,96080.0,96076.0,0.3638]
[1739456836836,0.02101161,96080.0,96076.0,0.3628]
[1739456837532,0.02101161,96080.0,96076.0,0.3618]
[1739456838931,0.02101161,96080.0,96076.0,0.3628]
[1739456839338,0.02101161,96080.0,96076.0,0.5709365]
[1739456839542,0.02101161,96080.0,96079.0,0.2081314]
[1739456840228,0.02101161,96080.0,96076.0,0.3618]
[1739456840633,0.02101161,96080.0,96079.0,0.003]
[1739456842036,0.02101161,96080.0,96079.0,0.001]
[1739456842827,0.02101161,96080.0,96076.0,0.3628]
[1739456843538,0.02101161,96080.0,96076.0,0.3608]
[1739456846538,0.02101161,96080.0,96076.0,0.3618]
[1739456847039,0.02101161,96080.0,96076.0,0.3608]
[1739456847941,0.02101161,96080.0,96069.0,0.1806]
[1739456848137,0.20814,96076.0,96069.0,0.1806]
[1739456848536,0.08198092,96079.0,96069.0,0.1806]
[1739456849041,0.29011292,96079.0,96069.0,0.1806]
[1739456850138,0.08198092,96079.0,96069.0,0.1806]
[1739456850345,0.08198092,96079.0,96069.0,0.3887528]
[1739456851245,0.08198092,96079.0,96071.0,0.3608]
[1739456851647,0.10299253,96080.0,96071.0,0.3608]
[1739456852938,0.02101161,96080.0,96071.0,0.3608]
[1739456853747,0.02101161,96080.0,96079.0,0.3608]
[1739456855847,0.02101161,96080.0,96079.0,0.3618]
[1739456856447,0.02101161,96080.0,96079.0,0.3638]
[1739456861649,0.02101161,96080.0,96079.0,0.3618]
[1739456862849,0.02101161,96080.0,96079.0,0.3638]
[1739456864840,0.02101161,96080.0,96079.0,0.3618]
[1739456865540,0.02101161,96080.0,96079.0,0.3608]
[1739456867449,0.02101161,96080.0,96079.0,0.5689314]
[1739456868049,0.02101161,96080.0,96079.0,0.5699314]
[1739456868246,0.02101161,96080.0,96079.0,0.5719314]
[1739456868844,0.02101161,96080.0,96079.0,0.3628]
[1739456869245,0.02101161,96080.0,96079.0,0.3618]
[1739456870253,0.02101161,96080.0,96079.0,0.001]
[1739456870453,0.02101161,96080.0,96069.0,0.1806]
[1739456870651,0.3608,96075.0,96069.0,0.1806]
[1739456870849,0.08192,96074.0,96069.0,0.1806]
[1739456872160,0.2081469,96072.0,96069.0,0.1806]
[1739456872550,0.2081497,96071.0,96069.0,0.1806]
[1739456872946,0.3608,96075.0,96069.0,0.1806]
[1739456873149,0.2900626,96074.0,96069.0,0.1806]
[1739456873352,0.2081452,96073.0,96069.0,0.1806]
[1739456873658,0.3608,96075.0,96069.0,0.1806]
[1739456873861,0.08192,96074.0,96069.0,0.1806]
[1739456875662,0.2900632,96074.0,96069.0,0.1806]
[1739456875967,0.2081432,96074.0,96069.0,0.1806]
[1739456877263,0.08198092,96079.0,96069.0,0.1806]
[1739456877458,0.18497345,96080.0,96069.0,0.1806]
[1739456878364,0.2081337,96078.0,96069.0,0.1806]
[1739456880159,0.2081387,96076.0,96069.0,0.1806]
[1739456880358,0.2081519,96070.0,96059.0,0.3608]
[1739456880958,0.52536185,96075.0,96059.0,0.3608]
[1739456881163,0.52476184,96075.0,96057.0,0.3608]
[1739456881364,0.5689596,96066.0,96057.0,0.3608]
[1739456881863,0.3608,96066.0,96053.0,0.1239]
[1739456882071,0.3608,96066.0,96065.0,0.002]
[1739456882257,0.44268,96066.0,96065.0,0.002]
[1739456882456,0.44268,96066.0,96053.0,0.1239]
[1739456882667,0.3608,96058.0,96050.0,0.0654]
[1739456882870,0.2082073,96044.0,96040.0,0.1211]
[1739456883067,0.5690073,96044.0,96040.0,0.1211]
[1739456883668,0.5690073,96044.0,96034.0,0.0001561]
[1739456884363,0.5882691,96044.0,96034.0,0.0001561]
[1739456884770,0.5882691,96044.0,96043.0,0.003]
[1739456885565,0.3800618,96044.0,96043.0,0.003]
[1739456885765,0.3800618,96044.0,96043.0,0.006]
[1739456886069,0.0192618,96044.0,96043.0,0.006]
[1739456886269,0.208195,96050.0,96043.0,0.006]
[1739456887275,0.2081977,96049.0,96043.0,0.003]
[1739456887463,0.2081977,96049.0,96043.0,0.006]
[1739456888469,0.01859662,96050.0,96043.0,0.006]
[1739456888671,0.12522391,96053.0,96043.0,0.006]
[1739456888872,0.2081908,96052.0,96043.0,0.006]
[1739456889671,0.22751324,96052.0,96043.0,0.006]
[1739456889876,0.22751254,96052.0,96043.0,0.006]
[1739456890079,0.3608,96054.0,96043.0,0.006]
[1739456890080,0.33006916,96054.0,96043.0,0.006]
[1739456890378,0.12506781,96053.0,96049.0,0.2081948]
[1739456890576,0.33006916,96054.0,96050.0,0.1233]
[1739456891077,0.34901654,96054.0,96050.0,0.1233]
[1739456891373,0.34901654,96054.0,96043.0,0.006]
[1739456891567,0.12506781,96053.0,96039.0,0.1233]
[1739456891768,0.2081921,96051.0,96050.0,0.001]
[1739456892079,0.0664,96052.0,96034.0,0.0001561]
[1739456892275,0.12506781,96044.0,96034.0,0.0001561]
[1739456892575,0.33327571,96044.0,96043.0,0.003]
[1739456892779,0.2082079,96044.0,96043.0,0.003]
[1739456893276,0.3608,96046.0,96043.0,0.003]
[1739456893473,0.08184,96045.0,96043.0,0.003]
[1739456894469,0.08184,96045.0,96039.0,0.004]
[1739456894670,0.08184,96045.0,96034.0,0.0061561]
[1739456894871,0.3608,96046.0,96043.0,0.003]
[1739456895178,0.5690034,96046.0,96034.0,0.0001561]
[1739456895373,0.5690034,96046.0,96043.0,0.006]
[1739456896971,0.5690034,96046.0,96043.0,0.003]
[1739456897467,0.5690034,96046.0,96043.0,0.006]
[1739456899386,0.2082073,96044.0,96043.0,0.006]
[1739456900367,0.3608,96046.0,96043.0,0.006]
[1739456900576,0.0818,96045.0,96043.0,0.003]
[1739456900776,0.0818,96045.0,96043.0,0.006]
[1739456900975,0.208193,96051.0,96043.0,0.006]
[1739456901374,0.208193,96051.0,96043.0,0.003]
[1739456901575,0.12506781,96053.0,96043.0,0.006]
[1739456901576,0.2081944,96050.0,96043.0,0.006]
[1739456902282,0.2081944,96050.0,96043.0,0.003]
[1739456902479,0.12506781,96053.0,96043.0,0.006]
[1739456902783,0.33325581,96053.0,96043.0,0.006]
[1739456902985,0.208193,96051.0,96043.0,0.006]
[1739456903577,0.12506781,96053.0,96043.0,0.006]
[1739456903978,0.12506781,96053.0,96045.0,0.2082048]
[1739456904173,0.01894738,96054.0,96046.0,0.2729026]
[1739456904375,0.3608,96056.0,96046.0,0.2729026]
[1739456904883,0.3608,96056.0,96049.0,0.2081961]
[1739456905075,0.3608,96056.0,96050.0,0.1256]
[1739456905277,0.0818,96055.0,96050.0,0.3337941]
[1739456905476,0.37777947,96056.0,96050.0,0.3337941]
[1739456905672,0.37777947,96056.0,96050.0,0.1256]
[1739456908784,0.37777947,96056.0,96050.0,0.1266]
[1739456910080,0.37777947,96056.0,96050.0,0.1256]
[1739456910279,0.37777947,96056.0,96050.0,0.1276]
[1739456911681,0.37777947,96056.0,96050.0,0.1266]
[1739456917393,0.2081899,96053.0,96050.0,0.001]
[1739456918285,0.2081921,96051.0,96050.0,0.001]
[1739456920195,0.37777947,96056.0,96050.0,0.001]
[1739456921098,0.2081921,96051.0,96050.0,0.001]
[1739456923391,0.37777947,96056.0,96050.0,0.001]
[1739456923689,0.01697947,96056.0,96043.0,0.2082091]
[1739456923891,0.12505876,96053.0,96050.0,0.001]
[1739456924095,0.18972041,96059.0,96050.0,0.001]
[1739456924296,0.08168,96058.0,96050.0,0.001]
[1739456924793,0.08168,96058.0,96043.0,0.2082091]
[1739456925096,0.18972041,96059.0,96043.0,0.2112091]
[1739456926398,0.18972041,96059.0,96050.0,0.001]
[1739456926594,0.08168,96058.0,96050.0,0.001]
[1739456926898,0.08168,96058.0,96043.0,0.2082091]
[1739456927199,0.01682041,96059.0,96043.0,0.2112091]
[1739456927391,0.45893082,96060.0,96043.0,0.2112091]
[1739456927587,0.12505876,96053.0,96050.0,0.001]
[1739456927891,0.45829082,96060.0,96050.0,0.001]
[1739456928086,0.45829082,96060.0,96043.0,0.2112091]
[1739456928291,0.12505876,96053.0,96043.0,0.2142091]
[1739456928694,0.12505876,96053.0,96043.0,0.006]
[1739456928999,0.12505876,96053.0,96048.0,0.2081981]
[1739456929199,0.25011752,96060.0,96043.0,0.006]
[1739456929498,0.12505876,96053.0,96043.0,0.006]
[1739456929691,0.12505876,96053.0,96043.0,0.003]
[1739456930890,0.12505876,96053.0,96043.0,0.2082093]
[1739456931094,0.12505876,96053.0,96050.0,0.001]
[1739456931283,0.22575624,96059.0,96050.0,0.001]
[1739456931490,0.22575624,96059.0,96043.0,0.2112093]
[1739456931685,0.22575624,96059.0,96043.0,0.006]
[1739456931891,0.01758104,96059.0,96043.0,0.006]
[1739456932097,0.12505876,96053.0,96043.0,0.006]
[1739456932296,0.12505876,96053.0,96049.0,0.208195]
[1739456932499,0.12505876,96059.0,96049.0,0.208195]
[1739456932691,0.142031,96059.0,96049.0,0.208195]
[1739456932996,0.142031,96059.0,96044.0,0.2082054]
[1739456933198,0.12505876,96054.0,96044.0,0.2082054]
[1739456934498,0.2081879,96053.0,96044.0,0.005]
[1739456934888,0.12505876,96054.0,96044.0,0.005]
[1739456935091,0.2081923,96051.0,96044.0,0.005]
[1739456935290,0.2081946,96050.0,96044.0,0.005]
[1739456935492,0.48585876,96054.0,96044.0,0.005]
[1739456935794,0.5690051,96045.0,96044.0,0.005]
[1739456936502,0.2082268,96035.0,96026.0,0.0645]
[1739456936689,0.2082268,96035.0,96027.0,0.1256]
[1739456937394,0.2082268,96035.0,96026.0,0.0645]
[1739456937395,0.2082268,96035.0,96018.0,0.3608]
[1739456937592,0.2082268,96035.0,96019.0,0.0629]
[1739456937792,0.2082268,96035.0,96034.0,0.0051561]
[1739456938994,0.2082268,96035.0,96034.0,0.0101561]
[1739456939897,0.004,96035.0,96034.0,0.0051561]
[1739456940098,0.007,96035.0,96034.0,0.0001561]
[1739456940299,0.2152268,96035.0,96034.0,0.0001561]
[1739456945396,0.007,96035.0,96019.0,0.0629]
[1739456945602,0.2082525,96024.0,96019.0,0.0629]
[1739456945802,0.208253,96023.0,96019.0,0.0629]
[1739456946002,0.208257,96022.0,96019.0,0.0629]
[1739456946207,0.5690593,96020.0,96019.0,0.0629]
[1739456947106,0.2082593,96020.0,96019.0,0.0649]
[1739456947501,0.22558383,96020.0,96019.0,0.0649]
[1739456950212,0.22558383,96020.0,96019.0,0.0659]
[1739456951206,0.22558383,96020.0,96019.0,0.003]
[1739456952807,0.2082767,96012.0,96011.0,0.00015618]
[1739456954611,0.2082716,96015.0,96011.0,0.00015618]
[1739456954810,0.2082716,96015.0,96011.0,0.00415618]
[1739456955011,0.2082716,96015.0,96011.0,0.00815618]
[1739456955211,0.2082654,96018.0,96011.0,0.00415618]
[1739456955411,0.002,96012.0,96011.0,0.00415618]
[1739456955810,0.002,96012.0,96011.0,0.00015618]
[1739456956818,0.006,96012.0,96011.0,0.00015618]
[1739456957019,0.004,96012.0,96011.0,0.00015618]
[1739456957819,0.006,96012.0,96011.0,0.00015618]
[1739456958818,0.004,96012.0,96011.0,0.00015618]
[1739456959218,0.002,96012.0,96011.0,0.00015618]
[1739456959423,0.001,96012.0,96011.0,0.00015618]
[1739456959723,0.004,96012.0,96011.0,0.00015618]
[1739456960216,0.004,96012.0,96011.0,0.20843498]
[1739456960423,0.01597836,96020.0,96011.0,0.00015618]
[1739456960614,0.12505876,96021.0,96017.0,0.3608]
[1739456960919,0.77108001,96025.0,96017.0,0.3608]
[1739456961112,0.77048,96025.0,96024.0,0.2082507]
[1739456961312,0.00015618,96030.0,96026.0,0.2082462]
[1739456961516,0.00015618,96030.0,96027.0,0.1325]
[1739456963121,0.0159745,96030.0,96027.0,0.1325]
[1739456963623,0.0189745,96030.0,96027.0,0.1325]
[1739456963826,0.0189745,96030.0,96028.0,0.0602]
[1739456964719,0.0189745,96030.0,96029.0,0.3608]
[1739456965212,0.0199745,96030.0,96029.0,0.3608]
[1739456966720,0.0159745,96030.0,96029.0,0.3608]
[1739456966912,0.0199745,96030.0,96029.0,0.3608]
[1739456967311,0.0159745,96030.0,96029.0,0.3608]
[1739456967520,0.0179745,96030.0,96028.0,0.0602]
[1739456968425,0.0189745,96030.0,96028.0,0.0602]
[1739456968626,0.0199745,96030.0,96028.0,0.0602]
[1739456970624,0.2082398,96029.0,96028.0,0.0602]
[1739456970826,0.2896798,96029.0,96028.0,0.0602]
[1739456971921,0.2936798,96029.0,96028.0,0.0602]
[1739456975225,0.2082484,96026.0,96016.0,0.3608]
[1739456975424,0.2082484,96026.0,96017.0,0.0663]
[1739456975425,0.2082502,96025.0,96017.0,0.0663]
[1739456976624,0.12505876,96026.0,96017.0,0.0663]
[1739456977927,0.208258,96021.0,96017.0,0.0663]
[1739456978122,0.2082637,96018.0,96017.0,0.0663]
[1739456978519,0.2082547,96023.0,96017.0,0.0663]
[1739456978722,0.12605876,96026.0,96016.0,0.3608]
[1739456978927,0.2082639,96018.0,96011.0,0.00015618]
[1739456979329,0.2112639,96018.0,96011.0,0.00015618]
[1739456979531,0.003,96018.0,96011.0,0.00015618]
[1739456980932,0.2082546,96023.0,96011.0,0.00015618]
[1739456981834,0.003,96018.0,96011.0,0.00015618]
[1739456982334,0.001,96018.0,96011.0,0.00215618]
[1739456983234,0.001,96018.0,96017.0,0.5690658]
[1739456983629,0.0159745,96030.0,96017.0,0.3608]
[1739456983829,0.0159745,96030.0,96029.0,0.5690398]
[1739456985236,0.0179745,96030.0,96029.0,0.5690398]
[1739456985730,0.12505876,96040.0,96039.0,0.2082181]
[1739456985935,0.01574867,96040.0,96039.0,0.5690181]
[1739456986132,0.06303746,96044.0,96039.0,0.5690181]
[1739456986334,0.07867174,96044.0,96040.0,0.1275]
[1739456987131,0.01563428,96044.0,96040.0,0.1275]
[1739456987329,0.00156223,96045.0,96040.0,0.1275]
[1739456987529,0.01707671,96045.0,96040.0,0.1275]
[1739456987731,0.00156223,96045.0,96040.0,0.1275]
[1739456988238,0.004,96044.0,96040.0,0.1275]
[1739456988440,0.004,96044.0,96040.0,0.1285]
[1739456988842,0.2082135,96042.0,96040.0,0.1285]
[1739456989234,0.2082135,96042.0,96040.0,0.001]
[1739456989437,0.4255,96044.0,96040.0,0.001]
[1739456989638,0.2082138,96041.0,96040.0,0.001]
[1739456991644,0.42206001,96044.0,96040.0,0.001]
[1739456991844,0.004,96041.0,96040.0,0.001]
[1739456992048,0.2935338,96041.0,96040.0,0.001]
[1739456992237,0.2122138,96041.0,96040.0,0.001]
[1739456993732,0.004,96041.0,96040.0,0.001]
[1739456993931,0.08132,96041.0,96040.0,0.001]
[1739456994346,0.004,96044.0,96040.0,0.001]
[1739456994541,0.08132,96043.0,96041.0,0.0613]
[1739456994841,0.01706559,96045.0,96041.0,0.0613]
[1739456995442,0.01706559,96045.0,96043.0,0.208209]
[1739456996143,0.01706559,96045.0,96041.0,0.0613]
[1739456996541,0.004,96043.0,96041.0,0.0613]
[1739456997044,0.02106559,96045.0,96043.0,0.001]